bitfinex/quotes_SOLUSD_20230701
["timestamp","ask_amount","ask_price","bid_price","bid_amount"]
[1688213734230,55.0,18.468,18.456,22.919]
[1688213734410,22.908,18.465,18.456,22.919]
[1688213734814,22.908,18.465,18.45,34.95]
[1688213735022,55.0,18.464,18.446,166.75]
[1688213735329,22.916,18.459,18.45,22.925]
[1688213735927,22.914,18.461,18.45,33.76219922]
[1688213736122,22.914,18.461,18.45,68.30219922]
[1688213736526,22.914,18.461,18.45,33.76219922]
[1688213736728,22.914,18.461,18.45,22.925]
[1688213736931,55.0,18.46,18.45,22.925]
[1688213737226,22.916,18.459,18.45,22.925]
[1688213737622,22.913,18.461,18.45,22.925]
[1688213737827,22.913,18.461,18.45,33.76219922]
[1688213740327,22.912,18.462,18.45,33.76219922]
[1688213740529,55.0,18.461,18.45,33.76219922]
[1688213740925,77.913,18.461,18.45,33.76219922]
[1688213741132,77.913,18.461,18.45,22.925]
[1688213748135,34.88,18.46,18.45,22.925]
[1688213748333,22.918,18.457,18.45,22.925]
[1688213748528,55.0,18.456,18.45,22.925]
[1688213748729,55.0,18.456,18.449,22.928]
[1688213749234,77.92,18.456,18.447,22.929]
[1688213751239,22.92,18.456,18.447,22.929]
[1688213752825,22.92,18.456,18.445,22.931]
[1688213753029,22.92,18.456,18.446,22.931]
[1688213753330,22.92,18.456,18.447,22.93]
[1688213753532,22.92,18.456,18.442,10.83719922]
[1688213753730,22.92,18.456,18.442,69.88419922]
[1688213754141,22.92,18.456,18.445,22.931]
[1688213755241,22.925,18.452,18.434,59.072]
[1688213755428,55.0,18.451,18.437,22.942]
[1688213755635,22.93,18.447,18.437,22.942]
[1688213755834,22.93,18.447,18.438,20.0]
[1688213756025,22.93,18.447,18.439,22.94]
[1688213756338,22.928,18.449,18.439,22.94]
[1688213756520,22.94,18.449,18.439,22.94]
[1688213756727,92.3879,18.454,18.439,22.94]
[1688213757046,22.929,18.448,18.439,22.94]
[1688213757631,22.929,18.448,18.438,20.0]
[1688213758041,22.929,18.448,18.438,22.941]
[1688213758343,22.94,18.449,18.438,22.941]
[1688213758646,22.93,18.447,18.438,22.941]
[1688213759441,22.94,18.449,18.438,22.941]
[1688213759826,55.0,18.448,18.438,22.941]
[1688213760027,77.93,18.448,18.438,22.941]
[1688213760235,77.93,18.448,18.436,22.943]
[1688213760435,77.93,18.448,18.435,10.83719922]
[1688213761331,22.94,18.449,18.436,20.0]
[1688213761642,231.37751686,18.46,18.439,81.995]
[1688213761643,22.924,18.452,18.439,81.995]
[1688213761828,22.924,18.452,18.443,22.934]
[1688213764649,30.837199,18.453,18.443,22.934]
[1688213765343,53.760199,18.453,18.443,22.934]
[1688213766342,58.973,18.467,18.444,85.83719922]
[1688213766643,22.912,18.462,18.45,22.925]
[1688213767644,81.885,18.462,18.45,22.925]
[1688213768343,9.37021706,18.467,18.45,57.465]
[1688213768647,22.908,18.465,18.45,57.465]
[1688213768849,22.908,18.465,18.45,22.925]
[1688213769546,55.0,18.464,18.45,22.925]
[1688213769747,22.911,18.463,18.45,22.925]
[1688213769929,55.0,18.462,18.45,22.925]
[1688213770129,77.912,18.462,18.45,22.925]
[1688213773627,55.0,18.462,18.45,22.925]
[1688213773828,55.0,18.463,18.45,22.925]
[1688213774028,77.911,18.463,18.45,22.925]
[1688213776048,87.28121706,18.463,18.45,22.925]
[1688213776550,77.911,18.463,18.45,22.925]
[1688213781848,22.908,18.465,18.45,22.925]
[1688213782751,22.91,18.463,18.45,22.925]
[1688213783546,55.0,18.462,18.45,22.925]
[1688213783842,22.916,18.459,18.45,22.925]
[1688213784050,55.0,18.458,18.45,22.925]
[1688213788459,22.908,18.465,18.45,22.925]
[1688213788758,55.0,18.464,18.45,22.925]
[1688213793761,77.909,18.464,18.45,22.925]
[1688213794143,9.37021706,18.463,18.45,22.925]
[1688213794356,22.915,18.46,18.45,22.925]
[1688213794567,55.0,18.459,18.45,22.925]
[1688213795063,77.916,18.459,18.45,22.925]
[1688213796447,55.0,18.459,18.45,22.925]
[1688213796656,55.0,18.46,18.45,22.925]
[1688213797679,77.914,18.46,18.45,22.925]
[1688213798275,20.0,18.459,18.45,22.925]
[1688213798571,22.918,18.457,18.45,22.925]
[1688213798867,77.919,18.456,18.448,22.928]
[1688213799069,55.0,18.455,18.448,22.928]
[1688213800156,55.0,18.455,18.444,59.043]
[1688213800157,55.0,18.455,18.441,94.3555]
[1688213800359,77.921,18.455,18.446,22.93]
[1688213801977,136.929,18.455,18.443,22.934]
[1688213802169,136.929,18.455,18.441,22.936]
[1688213802472,136.929,18.455,18.442,22.936]
[1688213803773,22.926,18.451,18.442,22.936]
[1688213803963,22.928,18.449,18.442,22.936]
[1688213804270,55.0,18.448,18.442,22.936]
[1688213805658,22.924,18.453,18.442,22.936]
[1688213805872,55.0,18.452,18.442,22.936]
[1688213806261,77.924,18.452,18.442,22.936]
[1688213809181,77.924,18.452,18.44,22.938]
[1688213810081,117.4311,18.454,18.44,22.938]
[1688213810373,55.0,18.456,18.441,55.0]
[1688213810568,77.919,18.456,18.445,22.932]
[1688213811453,55.0,18.456,18.446,55.0]
[1688213811657,22.913,18.462,18.449,81.955]
[1688213811870,22.91,18.464,18.45,20.0]
[1688213812082,22.91,18.464,18.454,22.921]
[1688213812774,45.831,18.464,18.454,22.921]
[1688213813668,45.831,18.464,18.452,22.923]
[1688213814373,55.0,18.463,18.452,22.923]
[1688213814564,22.914,18.46,18.452,22.923]
[1688213814765,55.0,18.459,18.452,22.923]
[1688213815162,22.914,18.46,18.452,22.923]
[1688213815362,55.0,18.459,18.452,22.923]
[1688213819570,22.921,18.464,18.452,22.923]
[1688213819768,77.911,18.463,18.452,22.923]
[1688213823686,77.911,18.463,18.447,59.032]
[1688213823890,77.911,18.463,18.448,20.0]
[1688213824788,76.911,18.463,18.451,22.924]
[1688213835500,76.911,18.463,18.441,26.9358946]
[1688213835501,34.79,18.46,18.447,22.93]
[1688213835683,22.919,18.457,18.447,22.93]
[1688213835994,55.0,18.456,18.447,22.93]
[1688213836292,22.92,18.455,18.447,22.93]
[1688213836489,77.922,18.454,18.447,22.93]
[1688213836680,77.922,18.454,18.445,22.932]
[1688213837907,136.974,18.454,18.445,22.932]
[1688213838589,136.974,18.454,18.443,22.934]
[1688213839101,114.052,18.454,18.443,22.934]
[1688213840017,136.974,18.454,18.443,22.934]
[1688213842299,136.974,18.454,18.441,22.937]
[1688213842991,93.8972,18.453,18.441,22.937]
[1688213843192,22.927,18.45,18.441,22.937]
[1688213843711,55.0,18.449,18.439,22.94]
[1688213843900,22.931,18.447,18.44,20.0]
[1688213844096,55.0,18.446,18.44,20.0]
[1688213844399,77.932,18.446,18.44,20.0]
[1688213846503,55.0,18.446,18.441,22.937]
[1688213846700,55.0,18.446,18.44,20.0]
[1688213847206,77.932,18.446,18.44,20.0]
[1688213847407,77.932,18.446,18.435,22.944]
[1688213852006,77.932,18.446,18.429,135.55303939]
[1688213852207,77.932,18.446,18.433,22.947]
[1688213852415,77.932,18.446,18.43,35.02]
[1688213853007,77.932,18.446,18.433,22.947]
[1688213853714,77.932,18.446,18.43,35.02]
[1688213853893,77.932,18.446,18.426,59.098]
[1688213854095,77.932,18.446,18.427,102.2822322]
[1688213854299,77.932,18.446,18.427,75.0]
[1688213854808,77.932,18.446,18.433,22.947]
[1688213855208,22.931,18.447,18.433,22.947]
[1688213855409,59.018,18.452,18.433,22.947]
[1688213855410,22.925,18.452,18.434,20.0]
[1688213855611,22.925,18.452,18.439,22.94]
[1688213855912,22.925,18.452,18.443,22.934]
[1688213856113,81.975,18.454,18.443,22.934]
[1688213856921,59.052,18.454,18.443,22.934]
[1688213857213,90.7089,18.458,18.443,22.934]
[1688213858004,59.052,18.456,18.443,22.934]
[1688213858411,22.915,18.459,18.448,22.928]
[1688213858610,22.915,18.459,18.452,22.924]
[1688213858926,22.914,18.461,18.452,22.924]
[1688213859217,81.896,18.462,18.452,22.924]
[1688213859424,58.983,18.462,18.452,22.924]
[1688213859899,22.913,18.461,18.452,22.924]
[1688213860604,55.0,18.46,18.452,22.924]
[1688213860807,22.915,18.459,18.452,22.924]
[1688213861005,55.0,18.458,18.452,22.924]
[1688213861704,22.913,18.461,18.452,22.924]
[1688213862905,55.0,18.46,18.452,22.924]
[1688213863113,77.914,18.46,18.452,22.924]
[1688213863816,55.0,18.46,18.452,22.924]
[1688213864023,55.0,18.461,18.452,22.924]
[1688213864413,77.913,18.461,18.452,22.924]
[1688213865649,55.0,18.461,18.452,22.924]
[1688213866826,113.771,18.473,18.452,189.625]
[1688213867021,26.5058794,18.468,18.452,189.625]
[1688213867212,54.82,18.471,18.452,189.625]
[1688213867422,5.07297956,18.47,18.453,173.8541]
[1688213867622,22.903,18.47,18.459,22.914]
[1688213867926,27.77525162,18.477,18.46,20.0]
[1688213868137,4.60631882,18.476,18.465,22.908]
[1688213868318,2.073052,18.478,18.465,22.908]
[1688213868527,22.895,18.476,18.46,55.02]
[1688213868829,1.29035212,18.475,18.46,55.02]
[1688213869033,22.896,18.475,18.465,22.907]
[1688213869212,2.073052,18.478,18.465,22.907]
[1688213870824,22.894,18.477,18.462,22.911]
[1688213871014,22.894,18.477,18.461,98.8541]
[1688213871015,55.0,18.476,18.461,98.8541]
[1688213871215,55.0,18.476,18.462,22.911]
[1688213871216,22.9,18.472,18.462,22.911]
[1688213871423,55.0,18.471,18.462,22.911]
[1688213871734,55.0,18.476,18.462,22.911]
[1688213871921,55.0,18.477,18.462,22.911]
[1688213872230,1.12043906,18.476,18.462,22.911]
[1688213872731,22.896,18.475,18.462,22.911]
[1688213872928,77.897,18.474,18.462,22.911]
[1688213873305,77.897,18.474,18.45,175.31]
[1688213873306,13.21041356,18.473,18.454,59.009]
[1688213873526,13.21041356,18.473,18.456,22.918]
[1688213873527,22.905,18.468,18.456,22.918]
[1688213873723,81.871,18.468,18.451,99.5511]
[1688213873935,68.21041356,18.467,18.454,22.921]
[1688213874123,22.907,18.466,18.454,22.921]
[1688213874723,22.909,18.464,18.454,22.921]
[1688213876024,55.0,18.466,18.454,22.921]
[1688213876215,55.0,18.465,18.454,22.921]
[1688213876423,77.908,18.465,18.454,22.921]
[1688213876916,77.908,18.465,18.451,99.5511]
[1688213877832,77.908,18.465,18.45,35.23]
[1688213878916,77.908,18.465,18.454,22.921]
[1688213880340,55.0,18.465,18.454,22.921]
[1688213881046,55.0,18.466,18.454,22.921]
[1688213881226,90.8209,18.47,18.454,22.921]
[1688213881227,22.905,18.468,18.454,22.921]
[1688213881428,22.905,18.468,18.455,90.4088]
[1688213881729,58.95,18.474,18.458,22.915]
[1688213881930,22.901,18.471,18.462,22.911]
[1688213882530,151.8768,18.477,18.462,22.911]
[1688213882730,3.53215322,18.476,18.462,22.911]
[1688213883140,22.899,18.473,18.459,42.915]
[1688213883339,22.904,18.469,18.46,22.914]
[1688213884442,55.0,18.468,18.46,22.914]
[1688213885228,77.904,18.468,18.46,22.914]
[1688213885636,55.0,18.468,18.46,22.914]
[1688213890053,22.899,18.472,18.46,22.914]
[1688213890256,55.0,18.471,18.46,22.914]
[1688213890439,55.0,18.472,18.46,22.914]
[1688213890641,77.899,18.472,18.46,22.914]
[1688213891251,136.896,18.472,18.46,22.914]
[1688213892849,58.997,18.472,18.46,165.572]
[1688213893057,58.997,18.472,18.464,22.909]
[1688213893452,90.5915,18.477,18.464,22.909]
[1688213893648,24.965052,18.478,18.464,22.909]
[1688213893854,2.073052,18.478,18.468,22.903]
[1688213894238,23.746106,18.478,18.468,22.903]
[1688213895667,55.0,18.477,18.468,22.903]
[1688213896159,23.746106,18.478,18.468,22.903]
[1688213896340,2.073052,18.478,18.471,22.899]
[1688213903566,78.81324079,18.513,18.471,22.899]
[1688213903567,35.13,18.5,18.472,115.20836141]
[1688213903860,22.379,18.488,18.479,22.89]
[1688213904362,57.189,18.488,18.479,22.89]
[1688213904973,34.81,18.488,18.479,22.89]
[1688213905150,22.878,18.49,18.479,22.89]
[1688213905354,20.0,18.489,18.479,22.89]
[1688213906054,42.879,18.489,18.479,22.89]
[1688213906452,65.757,18.489,18.479,22.89]
[1688213907168,55.0,18.488,18.479,22.89]
[1688213907377,77.88,18.488,18.473,58.947]
[1688213907676,22.883,18.486,18.478,22.891]
[1688213907877,55.0,18.485,18.478,22.891]
[1688213908875,55.0,18.485,18.473,58.947]
[1688213909056,55.0,18.485,18.478,22.891]
[1688213910356,55.0,18.486,18.478,22.891]
[1688213911068,65.757,18.489,18.478,22.891]
[1688213911270,77.879,18.488,18.478,22.891]
[1688213912173,55.0,18.488,18.478,22.891]
[1688213912770,77.879,18.488,18.478,22.891]
[1688213915458,22.879,18.488,18.478,22.891]
[1688213915751,22.878,18.489,18.478,22.891]
[1688213915953,26.90719815,18.497,18.48,35.02]
[1688213916155,26.90719815,18.497,18.484,22.884]
[1688213916458,22.868,18.498,18.484,22.884]
[1688213916459,35.02,18.496,18.484,22.884]
[1688213916854,22.868,18.497,18.484,22.884]
[1688213917059,22.869,18.496,18.484,22.884]
[1688213917366,22.869,18.497,18.484,22.884]
[1688213917957,108.263476,18.498,18.484,22.884]
[1688213918270,22.867,18.498,18.484,22.884]
[1688213918474,131.126789,18.498,18.484,22.884]
[1688213919560,22.87,18.496,18.484,22.884]
[1688213921782,55.0,18.495,18.484,22.884]
[1688213922077,77.871,18.495,18.484,22.884]
[1688213927765,77.871,18.495,18.481,22.887]
[1688213927983,77.871,18.495,18.482,22.886]
[1688213928573,22.876,18.491,18.48,22.889]
[1688213928885,22.879,18.489,18.48,22.889]
[1688213929082,55.0,18.488,18.48,22.889]
[1688213929291,22.88,18.488,18.48,22.889]
[1688213929583,34.74,18.49,18.478,22.891]
[1688213929584,77.881,18.487,18.478,22.891]
[1688213930167,22.879,18.489,18.478,22.891]
[1688213930364,22.877,18.491,18.482,22.886]
[1688213931774,77.881,18.492,18.482,22.886]
[1688213931970,55.0,18.491,18.482,22.886]
[1688213932268,55.0,18.492,18.482,22.886]
[1688213932581,22.886,18.491,18.482,22.886]
[1688213932881,45.762,18.491,18.48,22.889]
[1688213933067,26.4333735,18.497,18.48,22.889]
[1688213933270,55.0,18.496,18.48,57.909]
[1688213934069,77.87,18.496,18.48,57.909]
[1688213935986,77.87,18.496,18.48,22.889]
[1688213936977,34.91,18.49,18.48,22.889]
[1688213937277,77.879,18.489,18.48,22.889]
[1688213937478,77.879,18.489,18.475,58.944]
[1688213938092,77.879,18.489,18.475,22.894]
[1688213938777,181.30211706,18.489,18.475,22.894]
[1688213939372,9.37021706,18.488,18.468,58.964]
[1688213939574,22.887,18.482,18.474,22.896]
[1688213939782,55.0,18.481,18.468,69.80119922]
[1688213939983,55.0,18.481,18.469,20.0]
[1688213940280,77.888,18.481,18.472,22.898]
[1688213942691,34.91,18.48,18.464,58.976]
[1688213942888,22.895,18.476,18.464,22.908]
[1688213943092,55.0,18.475,18.456,69.83919922]
[1688213943301,22.902,18.47,18.459,22.914]
[1688213943503,55.0,18.469,18.459,22.914]
[1688213943679,77.904,18.469,18.459,22.914]
[1688213944096,77.904,18.469,18.449,59.027]
[1688213944297,7.32477349,18.468,18.451,59.018]
[1688213944596,7.32477349,18.468,18.455,22.92]
[1688213944895,100.808,18.469,18.455,22.92]
[1688213945291,77.905,18.468,18.455,22.92]
[1688213946484,77.905,18.468,18.451,59.018]
[1688213946485,12.84107051,18.467,18.451,22.925]
[1688213946695,77.905,18.468,18.451,22.925]
[1688213946696,22.912,18.462,18.451,22.925]
[1688213947075,55.0,18.461,18.451,22.925]
[1688213947279,77.913,18.461,18.451,22.925]
[1688213948391,77.913,18.461,18.447,22.929]
[1688213948392,22.918,18.457,18.447,22.929]
[1688213948688,77.92,18.456,18.447,22.929]
[1688213949290,77.92,18.456,18.441,59.05]
[1688213949702,77.92,18.456,18.445,22.932]
[1688213949897,155.84,18.456,18.438,166.821]
[1688213950199,155.84,18.456,18.443,22.935]
[1688213950387,95.3289,18.455,18.443,22.935]
[1688213950702,22.924,18.452,18.443,22.935]
[1688213950878,55.0,18.451,18.443,22.935]
[1688213951395,77.924,18.452,18.443,22.935]
[1688213951596,55.0,18.452,18.443,22.935]
[1688213951796,55.0,18.453,18.443,22.935]
[1688213952192,77.923,18.453,18.443,22.935]
[1688213953081,55.0,18.453,18.443,22.935]
[1688213953282,77.923,18.453,18.443,22.935]
[1688213956084,55.0,18.453,18.443,22.935]
[1688213956285,77.923,18.453,18.443,22.935]
[1688213958800,55.0,18.453,18.443,22.935]
[1688213959009,100.84,18.456,18.443,22.935]
[1688213959601,77.92,18.456,18.443,22.935]
[1688213960692,100.839,18.456,18.443,22.935]
[1688213961206,77.92,18.455,18.443,22.935]
[1688213963004,77.92,18.456,18.443,22.935]
[1688213963225,27.46549319,18.459,18.444,55.0]
[1688213963504,22.911,18.463,18.448,189.662]
[1688213963891,27.465494,18.46,18.449,20.0]
[1688213964092,27.465494,18.46,18.452,22.923]
[1688213965307,22.91,18.464,18.452,22.923]
[1688213965510,55.0,18.463,18.452,22.923]
[1688213966502,59.02,18.464,18.452,22.923]
[1688213966805,22.906,18.467,18.452,130.607]
[1688213967908,120.383,18.467,18.452,130.607]
[1688213968299,22.908,18.465,18.452,130.607]
[1688213968504,55.0,18.464,18.452,130.607]
[1688213969907,77.909,18.464,18.452,130.607]
[1688213970213,77.909,18.464,18.452,22.923]
[1688213973795,55.0,18.464,18.452,22.923]
[1688213975498,120.383,18.467,18.452,22.923]
[1688213975814,97.477,18.467,18.453,55.0]
[1688213976012,97.477,18.467,18.457,22.917]
[1688213978319,27.55943214,18.474,18.458,75.0]
[1688213978615,22.895,18.476,18.462,22.91]
[1688213978918,75.0,18.474,18.462,22.91]
[1688213979499,98.5449,18.478,18.462,130.536]
[1688213979917,197.0898,18.478,18.462,130.536]
[1688213980312,219.9818,18.478,18.462,228.8996]
[1688213980916,55.0,18.477,18.462,228.8996]
[1688213981317,77.893,18.477,18.462,121.2736]
[1688213981506,77.893,18.477,18.462,22.91]
[1688213982006,22.899,18.472,18.462,22.91]
[1688213982221,55.0,18.471,18.462,22.91]
[1688213993112,140.10295927,18.476,18.462,22.91]
[1688213993418,90.5518,18.476,18.462,130.536]
[1688213993823,98.5449,18.478,18.462,130.536]
[1688213994527,55.0,18.477,18.462,130.536]
[1688213994905,77.893,18.477,18.462,22.91]
[1688213995110,77.893,18.477,18.462,81.896]
[1688213995429,0.6691367,18.476,18.462,81.896]
[1688213995611,22.896,18.475,18.462,81.896]
[1688213995811,55.0,18.474,18.462,81.896]
[1688213996023,77.897,18.474,18.462,81.896]
[1688213998117,55.0,18.474,18.462,81.896]
[1688213999810,77.897,18.474,18.462,81.896]
[1688214003235,77.897,18.474,18.462,22.91]
[1688214010532,94.4801,18.475,18.462,22.91]
[1688214010734,117.3761,18.475,18.462,22.91]
[1688214010939,22.896,18.475,18.462,22.91]
[1688214011818,55.0,18.474,18.462,22.91]
[1688214012033,77.897,18.474,18.462,22.91]
[1688214014928,55.0,18.474,18.462,22.91]
[1688214016439,55.0,18.475,18.462,22.91]
[1688214018243,77.895,18.475,18.462,22.91]
[1688214020951,55.0,18.475,18.462,22.91]
[1688214021242,27.7446864,18.477,18.462,22.91]
[1688214021427,98.5449,18.478,18.463,55.0]
[1688214021742,26.72779339,18.48,18.467,81.873]
[1688214021947,26.72779339,18.48,18.465,107.603]
[1688214021948,22.886,18.483,18.472,22.898]
[1688214022154,55.0,18.482,18.472,22.898]
[1688214022335,22.886,18.483,18.472,22.898]
[1688214022649,91.3396,18.486,18.472,22.898]
[1688214023273,58.96,18.485,18.472,22.898]
[1688214023931,22.879,18.488,18.473,55.0]
[1688214024132,22.879,18.488,18.477,22.892]
[1688214025247,55.0,18.487,18.477,22.892]
[1688214025745,77.881,18.487,18.477,22.892]
[1688214025947,77.881,18.487,18.474,22.896]
[1688214034136,1.12366451,18.486,18.472,22.898]
[1688214034336,22.887,18.483,18.473,22.898]
[1688214034533,22.889,18.48,18.473,22.898]
[1688214034733,55.0,18.479,18.473,22.898]
[1688214035534,55.0,18.479,18.471,22.899]
[1688214035745,0.77580166,18.478,18.465,22.907]
[1688214036171,22.896,18.475,18.465,22.907]
[1688214036454,55.0,18.474,18.465,22.907]
[1688214037343,110.0,18.474,18.465,22.907]
[1688214039959,132.897,18.474,18.465,22.907]
[1688214045461,132.897,18.474,18.463,22.909]
[1688214045670,132.897,18.474,18.462,22.911]
[1688214051067,55.0,18.474,18.462,22.911]
[1688214052660,55.0,18.473,18.462,22.911]
[1688214056168,55.0,18.473,18.462,22.411]
[1688214056574,22.897,18.474,18.462,22.411]
[1688214058272,58.986,18.475,18.462,22.411]
[1688214058474,55.0,18.474,18.462,22.411]
[1688214058771,22.895,18.476,18.462,22.411]
[1688214059075,55.0,18.475,18.462,22.411]
[1688214059462,108.38155,18.477,18.463,75.0]
[1688214059671,58.906,18.487,18.47,34.94]
[1688214059970,22.885,18.484,18.475,22.895]
[1688214061373,81.874,18.488,18.475,22.895]
[1688214062874,91.3474,18.49,18.475,22.895]
[1688214063560,114.2244,18.49,18.475,22.895]
[1688214063962,55.0,18.489,18.475,22.895]
[1688214064369,77.878,18.489,18.475,22.895]
[1688214065371,22.874,18.493,18.483,22.885]
[1688214065576,122.21242828,18.496,18.483,22.885]
[1688214066077,95.5717,18.496,18.483,22.885]
[1688214066277,189.4387,18.496,18.483,22.885]
[1688214066463,55.0,18.495,18.483,22.885]
[1688214066781,22.875,18.492,18.483,22.885]
[1688214067080,55.0,18.491,18.483,22.885]
[1688214067260,77.876,18.491,18.483,22.885]
[1688214071074,55.0,18.491,18.483,22.885]
[1688214071266,55.0,18.492,18.483,22.885]
[1688214071881,189.4387,18.496,18.483,22.885]
[1688214072472,95.5717,18.496,18.483,22.885]
[1688214073075,22.867,18.498,18.483,22.885]
[1688214073473,58.919,18.497,18.483,22.885]
[1688214074670,58.919,18.497,18.487,81.784]
[1688214075485,58.919,18.497,18.487,22.879]
[1688214075986,55.0,18.496,18.487,22.879]
[1688214081876,58.919,18.497,18.487,22.879]
[1688214083689,22.865,18.5,18.487,22.879]
[1688214083986,55.0,18.499,18.487,22.879]
[1688214084687,58.906,18.5,18.487,33.71619922]
[1688214084869,22.864,18.501,18.492,22.873]
[1688214085272,26.88789424,18.505,18.492,22.873]
[1688214085489,22.873,18.501,18.492,22.873]
[1688214086982,55.0,18.5,18.485,58.912]
[1688214087290,22.869,18.497,18.488,22.878]
[1688214087489,55.0,18.496,18.488,22.878]
[1688214087787,77.869,18.496,18.488,22.878]
[1688214087986,55.0,18.496,18.488,22.878]
[1688214088684,22.868,18.497,18.488,22.878]
[1688214089276,22.868,18.497,18.481,58.923]
[1688214089477,22.868,18.497,18.487,22.88]
[1688214092183,22.867,18.499,18.487,22.88]
[1688214099097,55.0,18.498,18.487,22.88]
[1688214099298,22.87,18.496,18.487,22.88]
[1688214099798,22.869,18.496,18.487,22.88]
[1688214099993,260.057,18.507,18.49,34.77]
[1688214100199,260.057,18.507,18.493,22.872]
[1688214100200,22.863,18.502,18.493,22.872]
[1688214100588,22.863,18.502,18.491,22.875]
[1688214101799,22.865,18.5,18.491,22.875]
[1688214101999,55.0,18.499,18.491,22.875]
[1688214103106,22.858,18.505,18.491,22.875]
[1688214104502,22.862,18.503,18.491,22.875]
[1688214104683,77.862,18.502,18.491,22.875]
[1688214104883,22.862,18.502,18.491,22.875]
[1688214105083,77.863,18.501,18.491,22.875]
[1688214105297,22.863,18.501,18.491,22.875]
[1688214105499,55.0,18.5,18.491,22.875]
[1688214107301,55.0,18.501,18.491,22.875]
[1688214107498,77.863,18.501,18.491,22.875]
[1688214107889,54.94,18.5,18.491,22.875]
[1688214108092,77.866,18.499,18.491,22.875]
[1688214109990,55.0,18.499,18.491,22.875]
[1688214110614,77.866,18.499,18.491,22.875]
[1688214115613,22.866,18.499,18.491,22.875]
[1688214115811,55.0,18.498,18.491,22.875]
[1688214116404,77.867,18.498,18.491,22.875]
[1688214117098,77.867,18.498,18.485,58.909]
[1688214117303,77.867,18.498,18.482,58.921]
[1688214118514,77.867,18.498,18.485,22.882]
[1688214121218,98.5524,18.5,18.485,22.882]
[1688214121522,121.4174,18.5,18.485,22.882]